{"text_format":"3","workbook":"xlsx","n_sheets":3,"sheets":["Mulai","Pelacak dan Anggaran Hadiah","Data"],"not_rendered":{"charts":1,"defined_names":1},"read":"whole","date_system":"1900"}

{"sheet":"Mulai","index":0,"n_rows":7,"n_cols":2,"rows_kept":7}
[null,"Tentang Templat"]
[null,"Gunakan templat ini untuk mencatat pembelian hadiah dan melacaknya terhadap anggaran."]
[null,"Masukkan nama keluarga dan teman, item hadiah, jumlah yang dianggarkan dan dibelanjakan, dan catatan ke dalam tabel, serta pilih acara dan bulan acara."]
[null,"Bagan Gambaran Umum Bulanan diperbarui secara otomatis."]
[null,"Catatan: "]
[null,"Instruksi tambahan telah disediakan di kolom A di lembar kerja PELACAK DAN ANGGARAN HADIAH. Teks ini sengaja disembunyikan. Untuk menghapus teks, pilih kolom A, lalu pilih HAPUS. Untuk menampilkan teks, pilih kolom A, lalu ubah warna font."]
[null,"Untuk mempelajari selengkapnya tentang tabel, tekan SHIFT, lalu F10 dalam tabel, pilih opsi TABEL, kemudian pilih TEKS ALTERNATIF."]

{"sheet":"Pelacak dan Anggaran Hadiah","index":1,"n_rows":10,"n_cols":13,"rows_kept":10,"merged":[[0,1,0,4],[0,5,0,12],[1,1,1,2],[2,1,2,12],[3,1,3,3]]}
["Buat Pelacak dan Anggaran Hadiah pribadi di lembar kerja ini. Judul lembar kerja ada di sel di sebelah kanan dan tips di sel F1. Instruksi bermanfaat tentang cara menggunakan lembar kerja ini ada di sel di kolom ini.","Pelacak dan Anggaran Hadiah",{"$nulls":3},"Isi sebanyak mungkin pada setiap awal tahun baru. Masukkan nama keluarga dan teman, pilih acara hadiah, pilih bulan acara, dan ketikkan jumlah yang ingin Anda belanjakan. Setiap orang mungkin muncul beberapa kali dalam tabel untuk setiap acara yang berbeda (ulang tahun, hari raya, pesta lajang, dll.)."]
["Label Gambaran Umum Bulanan ada di sel di sebelah kanan dan tips di sel D2.","Gambaran Umum Bulanan",null,"Gunakan grafik untuk meninjau bulan-bulan mendatang guna menyusun rencana ke depannya. Catat pembelian Anda untuk melacaknya terhadap anggaran."]
["Bagan kolom untuk jumlah yang dianggarkan dengan overlay bagan garis untuk jumlah yang dibelanjakan ada di sel di sebelah kanan.","Bagan kolom untuk jumlah yang dianggarkan dengan overlay bagan garis untuk jumlah yang dibelanjakan ada di sel ini."]
["Label Pelacak dan Anggaran Hadiah ada di sel di sebelah kanan.","Pelacak dan Anggaran Hadiah"]
["Masukkan detail dalam tabel Pelacak Anggaran dimulai dari sel di sebelah kanan.","Siapa","Acara","Bulan","Jumlah\ndianggarkan","Jumlah\ndibelanjakan","Hadiah","Tautan ke hadiah","Di toko/\nOnline","Dibeli?","Dibungkus?","Terkirim?","Catatan"]
[null,"Nama 1","Ulang Tahun","Juni",{"v":50,"d":"Rp50"},{"v":30,"d":"Rp30"},"Sepatu","Penjual","Online","Ya","Tidak","Tidak","6/16, Tiket bioskop"]
[null,"Nama 2","Peringatan","April",{"v":20,"d":"Rp20"},{"v":20,"d":"Rp20"},"Kucing","Penjual","Di toko","Tidak","Tidak","Tidak","Dia mengatakan bahwa dia suka anjing"]
[null,"Nama 3","Hari Libur","Juli",{"v":50,"d":"Rp50"},{"v":70,"d":"Rp70"},"Headphone","Penjual","Online","Tidak","Tidak","Tidak","Barang-barang asrama"]
[null,"Nama 4","Ulang Tahun","Januari",{"v":20,"d":"Rp20"},{"v":30,"d":"Rp30"},"Permainan","Penjual","Di toko","Ya","Ya","Ya"]
[null,"Nama 5","Pernikahan","Juni",{"v":100,"d":"Rp100"},{"v":150,"d":"Rp150"},"Vas kristal","Penjual","Di toko","Ya","Ya","Tidak"]

{"sheet":"Data","index":2,"n_rows":13,"n_cols":8,"rows_kept":13,"hidden":true}
["Acara",null,"Tanggal","Tanggal","Jumlah yang Dianggarkan\nUlang Tahun","Jumlah yang Dianggarkan\nHari Libur","Jumlah yang Dianggarkan\nLainnya","Jumlah yang Dibelanjakan"]
["Ulang Tahun",null,"Januari","Jan",{"$f":"SUMIFS(BudgetTracker[Jumlah\ndianggarkan],BudgetTracker[Bulan],\"Januari\",BudgetTracker[Acara],\"Ulang Tahun\")","v":{"v":20,"d":"Rp20"}},{"$f":"SUMIFS(BudgetTracker[Jumlah\ndianggarkan],BudgetTracker[Bulan],\"Januari\",BudgetTracker[Acara],\"Hari Libur\")","v":{"v":0,"d":"Rp0"}},{"$f":"SUMIFS(BudgetTracker[Jumlah\ndianggarkan],BudgetTracker[Bulan],\"Januari\",BudgetTracker[Acara],\"<>Hari Libur\",BudgetTracker[Acara],\"<>Ulang Tahun\")","v":{"v":0,"d":"Rp0"}},{"$f":"SUMIFS(BudgetTracker[Jumlah\ndibelanjakan],BudgetTracker[Bulan],\"Januari\")","v":{"v":30,"d":"Rp30"}}]
["Hari Libur",null,"Februari","Feb",{"$f":"SUMIFS(BudgetTracker[Jumlah\ndianggarkan],BudgetTracker[Bulan],\"Februari\",BudgetTracker[Acara],\"Ulang Tahun\")","v":{"v":0,"d":"Rp0"}},{"$f":"SUMIFS(BudgetTracker[Jumlah\ndianggarkan],BudgetTracker[Bulan],\"Februari\",BudgetTracker[Acara],\"Hari Libur\")","v":{"v":0,"d":"Rp0"}},{"$f":"SUMIFS(BudgetTracker[Jumlah\ndianggarkan],BudgetTracker[Bulan],\"Februari\",BudgetTracker[Acara],\"<>Hari Libur\",BudgetTracker[Acara],\"<>Ulang Tahun\")","v":{"v":0,"d":"Rp0"}},{"$f":"SUMIFS(BudgetTracker[Jumlah\ndibelanjakan],BudgetTracker[Bulan],\"Februari\")","v":{"v":0,"d":"Rp0"}}]
["Peringatan",null,"Maret","Mar",{"$f":"SUMIFS(BudgetTracker[Jumlah\ndianggarkan],BudgetTracker[Bulan],\"Maret\",BudgetTracker[Acara],\"Ulang Tahun\")","v":{"v":0,"d":"Rp0"}},{"$f":"SUMIFS(BudgetTracker[Jumlah\ndianggarkan],BudgetTracker[Bulan],\"Maret\",BudgetTracker[Acara],\"Hari Libur\")","v":{"v":0,"d":"Rp0"}},{"$f":"SUMIFS(BudgetTracker[Jumlah\ndianggarkan],BudgetTracker[Bulan],\"Maret\",BudgetTracker[Acara],\"<>Hari Libur\",BudgetTracker[Acara],\"<>Ulang Tahun\")","v":{"v":0,"d":"Rp0"}},{"$f":"SUMIFS(BudgetTracker[Jumlah\ndibelanjakan],BudgetTracker[Bulan],\"Maret\")","v":{"v":0,"d":"Rp0"}}]
["Pernikahan",null,"April","Apr",{"$f":"SUMIFS(BudgetTracker[Jumlah\ndianggarkan],BudgetTracker[Bulan],\"April\",BudgetTracker[Acara],\"Ulang Tahun\")","v":{"v":0,"d":"Rp0"}},{"$f":"SUMIFS(BudgetTracker[Jumlah\ndianggarkan],BudgetTracker[Bulan],\"April\",BudgetTracker[Acara],\"Hari Libur\")","v":{"v":0,"d":"Rp0"}},{"$f":"SUMIFS(BudgetTracker[Jumlah\ndianggarkan],BudgetTracker[Bulan],\"April\",BudgetTracker[Acara],\"<>Hari Libur\",BudgetTracker[Acara],\"<>Ulang Tahun\")","v":{"v":20,"d":"Rp20"}},{"$f":"SUMIFS(BudgetTracker[Jumlah\ndibelanjakan],BudgetTracker[Bulan],\"April\")","v":{"v":20,"d":"Rp20"}}]
["Pesta lajang",null,"Mei","Mei",{"$f":"SUMIFS(BudgetTracker[Jumlah\ndianggarkan],BudgetTracker[Bulan],\"Mei\",BudgetTracker[Acara],\"Ulang Tahun\")","v":{"v":0,"d":"Rp0"}},{"$f":"SUMIFS(BudgetTracker[Jumlah\ndianggarkan],BudgetTracker[Bulan],\"Mei\",BudgetTracker[Acara],\"Hari Libur\")","v":{"v":0,"d":"Rp0"}},{"$f":"SUMIFS(BudgetTracker[Jumlah\ndianggarkan],BudgetTracker[Bulan],\"Mei\",BudgetTracker[Acara],\"<>Hari Libur\",BudgetTracker[Acara],\"<>Ulang Tahun\")","v":{"v":0,"d":"Rp0"}},{"$f":"SUMIFS(BudgetTracker[Jumlah\ndibelanjakan],BudgetTracker[Bulan],\"Mei\")","v":{"v":0,"d":"Rp0"}}]
["Pesta Penyambutan Kelahiran Bayi",null,"Juni","Jun",{"$f":"SUMIFS(BudgetTracker[Jumlah\ndianggarkan],BudgetTracker[Bulan],\"Juni\",BudgetTracker[Acara],\"Ulang Tahun\")","v":{"v":50,"d":"Rp50"}},{"$f":"SUMIFS(BudgetTracker[Jumlah\ndianggarkan],BudgetTracker[Bulan],\"Juni\",BudgetTracker[Acara],\"Hari Libur\")","v":{"v":0,"d":"Rp0"}},{"$f":"SUMIFS(BudgetTracker[Jumlah\ndianggarkan],BudgetTracker[Bulan],\"Juni\",BudgetTracker[Acara],\"<>Hari Libur\",BudgetTracker[Acara],\"<>Ulang Tahun\")","v":{"v":100,"d":"Rp100"}},{"$f":"SUMIFS(BudgetTracker[Jumlah\ndibelanjakan],BudgetTracker[Bulan],\"Juni\")","v":{"v":180,"d":"Rp180"}}]
["Wisuda",null,"Juli","Jul",{"$f":"SUMIFS(BudgetTracker[Jumlah\ndianggarkan],BudgetTracker[Bulan],\"Juli\",BudgetTracker[Acara],\"Ulang Tahun\")","v":{"v":0,"d":"Rp0"}},{"$f":"SUMIFS(BudgetTracker[Jumlah\ndianggarkan],BudgetTracker[Bulan],\"Juli\",BudgetTracker[Acara],\"Hari Libur\")","v":{"v":50,"d":"Rp50"}},{"$f":"SUMIFS(BudgetTracker[Jumlah\ndianggarkan],BudgetTracker[Bulan],\"Juli\",BudgetTracker[Acara],\"<>Hari Libur\",BudgetTracker[Acara],\"<>Ulang Tahun\")","v":{"v":0,"d":"Rp0"}},{"$f":"SUMIFS(BudgetTracker[Jumlah\ndibelanjakan],BudgetTracker[Bulan],\"Juli\")","v":{"v":70,"d":"Rp70"}}]
["Lainnya",null,"Agustus","Agu",{"$f":"SUMIFS(BudgetTracker[Jumlah\ndianggarkan],BudgetTracker[Bulan],\"Agustus\",BudgetTracker[Acara],\"Ulang Tahun\")","v":{"v":0,"d":"Rp0"}},{"$f":"SUMIFS(BudgetTracker[Jumlah\ndianggarkan],BudgetTracker[Bulan],\"Agustus\",BudgetTracker[Acara],\"Hari Libur\")","v":{"v":0,"d":"Rp0"}},{"$f":"SUMIFS(BudgetTracker[Jumlah\ndianggarkan],BudgetTracker[Bulan],\"Agustus\",BudgetTracker[Acara],\"<>Hari Libur\",BudgetTracker[Acara],\"<>Ulang Tahun\")","v":{"v":0,"d":"Rp0"}},{"$f":"SUMIFS(BudgetTracker[Jumlah\ndibelanjakan],BudgetTracker[Bulan],\"Agustus\")","v":{"v":0,"d":"Rp0"}}]
[null,null,"September","Sep",{"$f":"SUMIFS(BudgetTracker[Jumlah\ndianggarkan],BudgetTracker[Bulan],\"September\",BudgetTracker[Acara],\"Ulang Tahun\")","v":{"v":0,"d":"Rp0"}},{"$f":"SUMIFS(BudgetTracker[Jumlah\ndianggarkan],BudgetTracker[Bulan],\"September\",BudgetTracker[Acara],\"Hari Libur\")","v":{"v":0,"d":"Rp0"}},{"$f":"SUMIFS(BudgetTracker[Jumlah\ndianggarkan],BudgetTracker[Bulan],\"September\",BudgetTracker[Acara],\"<>Hari Libur\",BudgetTracker[Acara],\"<>Ulang Tahun\")","v":{"v":0,"d":"Rp0"}},{"$f":"SUMIFS(BudgetTracker[Jumlah\ndibelanjakan],BudgetTracker[Bulan],\"September\")","v":{"v":0,"d":"Rp0"}}]
[null,null,"Oktober","Okt",{"$f":"SUMIFS(BudgetTracker[Jumlah\ndianggarkan],BudgetTracker[Bulan],\"Oktober\",BudgetTracker[Acara],\"Ulang Tahun\")","v":{"v":0,"d":"Rp0"}},{"$f":"SUMIFS(BudgetTracker[Jumlah\ndianggarkan],BudgetTracker[Bulan],\"Oktober\",BudgetTracker[Acara],\"Hari Libur\")","v":{"v":0,"d":"Rp0"}},{"$f":"SUMIFS(BudgetTracker[Jumlah\ndianggarkan],BudgetTracker[Bulan],\"Oktober\",BudgetTracker[Acara],\"<>Hari Libur\",BudgetTracker[Acara],\"<>Ulang Tahun\")","v":{"v":0,"d":"Rp0"}},{"$f":"SUMIFS(BudgetTracker[Jumlah\ndibelanjakan],BudgetTracker[Bulan],\"Oktober\")","v":{"v":0,"d":"Rp0"}}]
[null,null,"November","Nov",{"$f":"SUMIFS(BudgetTracker[Jumlah\ndianggarkan],BudgetTracker[Bulan],\"November\",BudgetTracker[Acara],\"Ulang Tahun\")","v":{"v":0,"d":"Rp0"}},{"$f":"SUMIFS(BudgetTracker[Jumlah\ndianggarkan],BudgetTracker[Bulan],\"November\",BudgetTracker[Acara],\"Hari Libur\")","v":{"v":0,"d":"Rp0"}},{"$f":"SUMIFS(BudgetTracker[Jumlah\ndianggarkan],BudgetTracker[Bulan],\"November\",BudgetTracker[Acara],\"<>Hari Libur\",BudgetTracker[Acara],\"<>Ulang Tahun\")","v":{"v":0,"d":"Rp0"}},{"$f":"SUMIFS(BudgetTracker[Jumlah\ndibelanjakan],BudgetTracker[Bulan],\"November\")","v":{"v":0,"d":"Rp0"}}]
[null,null,"Desember","Des",{"$f":"SUMIFS(BudgetTracker[Jumlah\ndianggarkan],BudgetTracker[Bulan],\"Desember\",BudgetTracker[Acara],\"Ulang Tahun\")","v":{"v":0,"d":"Rp0"}},{"$f":"SUMIFS(BudgetTracker[Jumlah\ndianggarkan],BudgetTracker[Bulan],\"Desember\",BudgetTracker[Acara],\"Hari Libur\")","v":{"v":0,"d":"Rp0"}},{"$f":"SUMIFS(BudgetTracker[Jumlah\ndianggarkan],BudgetTracker[Bulan],\"Desember\",BudgetTracker[Acara],\"<>Hari Libur\",BudgetTracker[Acara],\"<>Ulang Tahun\")","v":{"v":0,"d":"Rp0"}},{"$f":"SUMIFS(BudgetTracker[Jumlah\ndibelanjakan],BudgetTracker[Bulan],\"Desember\")","v":{"v":0,"d":"Rp0"}}]